fUST/lending_fUST_20250727
["ID","MTS","AMOUNT","RATE_DAILY","PERIOD"]
[375226008,1753591479911,-5000.0,0.00018338,2]
[375226009,1753591479932,-155.81223404,0.00018523,2]
[375226010,1753591479954,-300.0,0.00018672,2]
[375226011,1753591479974,-367.10208047,0.00018673,2]
[375226012,1753591479994,-500.0,0.00018673,2]
[375226013,1753591480015,-3677.08568549,0.00018673,2]
[375226014,1753591574070,-415.46625546,0.00018573,2]
[375226015,1753591574093,-300.0,0.0001867,2]
[375226016,1753591574116,-300.0,0.00018671,2]
[375226017,1753591574139,-300.0,0.00018671,2]
[375226018,1753591574161,-300.0,0.00018671,2]
[375226019,1753591574183,-300.0,0.00018671,2]
[375226020,1753591574205,-1200.0,0.00018671,2]
[375226021,1753591574226,-300.0,0.00018671,2]
[375226022,1753591574249,-1056.56852625,0.00018671,2]
[375226023,1753591574272,-500.0,0.00018672,2]
[375226024,1753591574296,-500.0,0.00018672,2]
[375226025,1753591574318,-500.0,0.00018672,2]
[375226026,1753591574342,-500.0,0.00018672,2]
[375226027,1753591574365,-504.66293765,0.00018672,2]
[375226028,1753591574387,-500.0,0.00018672,2]
[375226029,1753591574411,-500.0,0.00018672,2]
[375226030,1753591574435,-23.30228064,0.00018672,2]
[375226031,1753591603661,227.0,0.00025999,120]
[375226032,1753591627128,-219.57173524,0.00018572,2]
[375226033,1753591627150,-440.98178011,0.00018671,2]
[375226034,1753591627171,-595.49294382,0.00018671,2]
[375226035,1753591697132,-4245.64528336,0.0001867,2]
[375226036,1753591697153,-604.50705618,0.00018671,2]
[375226037,1753591697174,-149.84766046,0.00018671,2]
[375226039,1753591779710,4572.67343759,0.00017675,2]
[375226040,1753591779733,2546.54978091,0.00017675,2]
[375226042,1753591803237,8992.15,0.00016781,2]
[375226097,1753591832689,-5000.0,0.00018299,2]
[375226099,1753591832700,-1062.60360786,0.00018484,2]
[375226101,1753591832709,-500.0,0.0001867,2]
[375226103,1753591832721,-500.0,0.0001867,2]
[375226105,1753591832730,-500.0,0.0001867,2]
[375226107,1753591832740,-500.0,0.0001867,2]
[375226109,1753591832750,-500.0,0.0001867,2]
[375226111,1753591832760,-500.0,0.0001867,2]
[375226113,1753591832769,-500.0,0.0001867,2]
[375226115,1753591832778,-500.0,0.0001867,2]
[375226117,1753591832787,-500.0,0.0001867,2]
[375226118,1753591832797,-500.0,0.0001867,2]
[375226119,1753591832806,-500.0,0.0001867,2]
[375226120,1753591832816,-500.0,0.0001867,2]
[375226121,1753591832826,-500.0,0.0001867,2]
[375226123,1753591832835,-500.0,0.0001867,2]
[375226124,1753591832845,-500.0,0.0001867,2]
[375226125,1753591832854,-500.0,0.0001867,2]
[375226127,1753591832863,-500.0,0.0001867,2]
[375226130,1753591832872,-500.0,0.0001867,2]
[375226133,1753591832882,-500.0,0.0001867,2]
[375226136,1753591832891,-333.69204417,0.0001867,2]
[375226139,1753591832900,-500.0,0.0001867,2]
[375226142,1753591832910,-500.0,0.0001867,2]
[375226145,1753591832919,-500.0,0.0001867,2]
[375226148,1753591832930,-500.0,0.0001867,2]
[375226151,1753591832939,-500.0,0.0001867,2]
[375226154,1753591832949,-318.64193214,0.0001867,2]
[375226156,1753591832958,-500.0,0.0001867,2]
[375226158,1753591832970,-500.0,0.0001867,2]
[375226160,1753591832985,-500.0,0.0001867,2]
[375226162,1753591832996,-500.0,0.0001867,2]
[375226164,1753591833007,-687.0,0.0001867,2]
[375226167,1753591833018,-46322.91431451,0.00018672,2]
[375226169,1753591833027,-500.0,0.00018673,2]
[375226171,1753591833036,-501.19702593,0.00018673,2]
[375226173,1753591833046,-500.0,0.00018673,2]
[375226175,1753591833055,-500.0,0.00018673,2]
[375226177,1753591833065,-432.17347293,0.00018673,2]
[375226178,1753591833075,-501.12694792,0.00018673,2]
[375226180,1753591833085,-500.0,0.00018673,2]
[375226183,1753591833095,-500.0,0.00018674,2]
[375226184,1753591833104,-500.0,0.00018677,2]
[375226186,1753591833114,-399.86172628,0.00018677,2]
[375226188,1753591833123,-500.0,0.00018677,2]
[375226190,1753591833133,-500.0,0.00018677,2]
[375226193,1753591833143,-500.0,0.00018677,2]
[375226194,1753591833152,-500.0,0.00018677,2]
[375226197,1753591833161,-500.0,0.00018677,2]
[375226199,1753591833171,-500.0,0.00018677,2]
[375226212,1753591833326,-500.0,0.00018677,2]
[375226214,1753591833336,-500.0,0.00018677,2]
[375226216,1753591833345,-500.0,0.00018677,2]
[375226219,1753591833355,-500.0,0.00018677,2]
[375226222,1753591833364,-500.0,0.00018677,2]
[375226224,1753591833373,-500.0,0.00018677,2]
[375226227,1753591833382,-500.0,0.00018677,2]
[375226230,1753591833392,-500.0,0.00018677,2]
[375226233,1753591833401,-495.38495113,0.00018677,2]
[375226236,1753591833410,-500.0,0.00018677,2]
[375226239,1753591833420,-400.0,0.00018677,2]
[375226242,1753591833429,-123091.60057988,0.00018678,2]
[375226245,1753591833442,-1929.84333827,0.00018678,2]
[375226248,1753591833453,-2576.07709876,0.00018678,2]
[375226250,1753591833464,-3490.2,0.00018678,2]
[375226252,1753591833475,-8897.31235089,0.00018678,2]
[375226254,1753591833493,-5573.65562272,0.00018678,2]
[375226256,1753591833504,-2675.19788194,0.00018678,2]
[375226258,1753591833515,-2877.86876847,0.00018678,2]
[375226261,1753591833527,-727.891282,0.00018678,2]
[375226263,1753591833538,-6271.743028,0.00018678,2]
[375226265,1753591833549,-876.50165581,0.00018678,2]
[375226266,1753591833559,-20500.99675461,0.00018678,2]
[375226306,1753591836052,2873.2947084,0.00017674,2]
[375226307,1753591836345,5000.0,0.0001801,2]
[375226321,1753591838507,-190511.11163865,0.00018678,2]
[375226322,1753591838518,-160.0,0.00018769,2]
[375226323,1753591838528,-500.0,0.00018948,2]
[375226324,1753591838537,-440.98178008,0.00019047,2]
[375226325,1753591838547,-326.0,0.00019081,2]
[375226326,1753591838556,-500.0,0.00019173,2]
[375226327,1753591838566,-500.0,0.00019173,2]
[375226328,1753591838575,-500.0,0.00019173,2]
[375226329,1753591838585,-500.0,0.00019173,2]
[375226330,1753591838594,-500.0,0.00019173,2]
[375226331,1753591838606,-500.0,0.00019173,2]
[375226332,1753591838617,-500.0,0.00019173,2]
[375226334,1753591838627,-500.0,0.00019173,2]
[375226335,1753591838637,-500.0,0.00019173,2]
[375226336,1753591838646,-505.53775134,0.00019173,2]
[375226338,1753591838656,-500.0,0.00019173,2]
[375226339,1753591838665,-500.0,0.00019173,2]
[375226340,1753591838674,-500.0,0.00019173,2]
[375226341,1753591838683,-460.0,0.00019178,2]
[375226342,1753591838692,-461.58603411,0.00019178,2]
[375226343,1753591838702,-460.0,0.00019178,2]
[375226344,1753591838711,-460.0,0.00019178,2]
[375226345,1753591838720,-461.32568626,0.00019178,2]
[375226346,1753591838731,-460.0,0.00019178,2]
[375226347,1753591838740,-460.0,0.00019178,2]
[375226348,1753591838750,-458.40963007,0.00019178,2]
[375226349,1753591838759,-460.0,0.00019178,2]
[375226350,1753591838769,-460.0,0.00019178,2]
[375226351,1753591838778,-460.0,0.00019178,2]
[375226352,1753591838788,-460.0,0.00019178,2]
[375226353,1753591838797,-460.0,0.00019178,2]
[375226354,1753591838807,-3053.11,0.00019178,2]
[375226355,1753591838816,-460.0,0.00019178,2]
[375226356,1753591838827,-460.0,0.00019178,2]
[375226357,1753591838836,-460.0,0.00019178,2]
[375226358,1753591838845,-460.0,0.00019178,2]
[375226359,1753591838854,-460.0,0.00019178,2]
[375226360,1753591838863,-460.0,0.00019178,2]
[375226361,1753591838873,-460.0,0.00019178,2]
[375226362,1753591838882,-460.0,0.00019178,2]
[375226363,1753591838891,-460.0,0.00019178,2]
[375226364,1753591838900,-1108.1,0.00019178,2]
[375226365,1753591838909,-460.0,0.00019178,2]
[375226366,1753591838919,-460.0,0.00019178,2]
[375226367,1753591838928,-460.0,0.00019178,2]
[375226368,1753591838938,-460.0,0.00019178,2]
[375226369,1753591838947,-460.0,0.00019178,2]
[375226370,1753591838956,-460.0,0.00019178,2]
[375226371,1753591838966,-460.0,0.00019178,2]
[375226372,1753591838976,-460.0,0.00019178,2]
[375226373,1753591838986,-552.26,0.00019178,2]
[375226374,1753591838995,-460.0,0.00019178,2]
[375226375,1753591839005,-461.53965318,0.00019178,2]
[375226376,1753591839014,-394.52596481,0.00019178,2]
[375226377,1753591839023,-491.34492628,0.00019178,2]
[375226378,1753591839033,-460.0,0.00019178,2]
[375226379,1753591839043,-460.0,0.00019178,2]
[375226380,1753591839052,-460.0,0.00019178,2]
[375226381,1753591839061,-460.0,0.00019178,2]
[375226382,1753591839070,-500.0,0.00019178,2]
[375226383,1753591839079,-580.0,0.00019178,2]
[375226384,1753591839088,-460.0,0.00019178,2]
[375226385,1753591839097,-460.63275666,0.00019178,2]
[375226386,1753591839107,-460.0,0.00019178,2]
[375226387,1753591839117,-460.0,0.00019178,2]
[375226388,1753591839126,-460.0,0.00019178,2]
[375226389,1753591839135,-460.0,0.00019178,2]
[375226390,1753591839144,-460.0,0.00019178,2]
[375226391,1753591839153,-460.0,0.00019178,2]
[375226392,1753591839163,-460.0,0.00019178,2]
[375226393,1753591839172,-460.0,0.00019178,2]
[375226394,1753591839181,-470.68193488,0.00019178,2]
[375226395,1753591839191,-1475.97,0.00019178,2]
[375226396,1753591839200,-460.0,0.00019178,2]
[375226397,1753591839210,-460.0,0.00019178,2]
[375226398,1753591839219,-460.0,0.00019178,2]
[375226399,1753591839229,-460.0,0.00019178,2]
[375226400,1753591839238,-504.80154515,0.00019178,2]
[375226401,1753591839247,-460.0,0.00019178,2]
[375226402,1753591839257,-460.0,0.00019178,2]
[375226403,1753591839266,-460.0,0.00019178,2]
[375226404,1753591839275,-460.0,0.00019178,2]
[375226405,1753591839285,-460.0,0.00019178,2]
[375226406,1753591839294,-500.0,0.00019178,2]
[375226407,1753591839303,-460.0,0.00019178,2]
[375226408,1753591839312,-460.0,0.00019178,2]
[375226409,1753591839321,-460.0,0.00019178,2]
[375226410,1753591839331,-460.0,0.00019178,2]
[375226411,1753591839339,-460.68969787,0.00019178,2]
[375226412,1753591839349,-460.0,0.00019178,2]
[375226413,1753591839359,-460.0,0.00019178,2]
[375226414,1753591839368,-460.0,0.00019178,2]
[375226415,1753591839377,-460.0,0.00019178,2]
[375226416,1753591839386,-460.0,0.00019178,2]
[375226417,1753591839396,-482.96,0.00019178,2]
[375226418,1753591839405,-460.0,0.00019178,2]
[375226419,1753591839414,-460.0,0.00019178,2]
[375226420,1753591839424,-460.0,0.00019178,2]
[375226421,1753591839433,-608.14,0.00019178,2]
[375226422,1753591839442,-460.0,0.00019178,2]
[375226423,1753591839451,-460.0,0.00019178,2]
[375226424,1753591839461,-465.56228922,0.00019178,2]
[375226425,1753591839470,-460.0,0.00019178,2]
[375226426,1753591839480,-460.0,0.00019178,2]
[375226427,1753591839489,-460.0,0.00019178,2]
[375226428,1753591839498,-460.0,0.00019178,2]
[375226429,1753591839507,-460.0,0.00019178,2]
[375226430,1753591839516,-460.0,0.00019178,2]
[375226431,1753591839526,-460.0,0.00019178,2]
[375226432,1753591839536,-460.0,0.00019178,2]
[375226433,1753591839545,-460.0,0.00019178,2]
[375226434,1753591839554,-460.0,0.00019178,2]
[375226435,1753591839563,-460.0,0.00019178,2]
[375226436,1753591839572,-466.754891,0.00019178,2]
[375226437,1753591839582,-460.0,0.00019178,2]
[375226438,1753591839591,-460.0,0.00019178,2]
[375226439,1753591839601,-460.0,0.00019178,2]
[375226440,1753591839610,-460.0,0.00019178,2]
[375226441,1753591839619,-460.0,0.00019178,2]
[375226442,1753591839629,-460.0,0.00019178,2]
[375226443,1753591839639,-464.39492641,0.00019178,2]
[375226444,1753591839648,-460.0,0.00019178,2]
[375226445,1753591839657,-844.88,0.00019178,2]
[375226446,1753591839666,-463.38054723,0.00019178,2]
[375226447,1753591839675,-460.0,0.00019178,2]
[375226448,1753591839685,-460.0,0.00019178,2]
[375226449,1753591839694,-460.0,0.00019178,2]
[375226450,1753591839703,-460.0,0.00019178,2]
[375226451,1753591839712,-460.0,0.00019178,2]
[375226452,1753591839724,-460.0,0.00019178,2]
[375226453,1753591839734,-460.0,0.00019178,2]
[375226454,1753591839744,-460.0,0.00019178,2]
[375226455,1753591839753,-460.0,0.00019178,2]
[375226456,1753591839762,-460.98837214,0.00019178,2]
[375226457,1753591839772,-460.0,0.00019178,2]
[375226458,1753591839781,-460.0,0.00019178,2]
[375226459,1753591839791,-818.66,0.00019178,2]
[375226460,1753591839802,-460.0,0.00019178,2]
[375226461,1753591839812,-460.0,0.00019178,2]
[375226462,1753591839821,-460.0,0.00019178,2]
[375226463,1753591839831,-460.0,0.00019178,2]
[375226464,1753591839841,-460.0,0.00019178,2]
[375226465,1753591839850,-460.0,0.00019178,2]
[375226466,1753591839860,-460.0,0.00019178,2]
[375226467,1753591839869,-880.14,0.00019178,2]
[375226468,1753591839878,-460.0,0.00019178,2]
[375226469,1753591839887,-460.0,0.00019178,2]
[375226471,1753591840011,-460.0,0.00019178,2]
[375226473,1753591840021,-567.68052798,0.00019178,2]
[375226474,1753591840030,-460.0,0.00019178,2]
[375226475,1753591840039,-2120.97,0.00019178,2]
[375226476,1753591840049,-460.0,0.00019178,2]
[375226477,1753591840058,-460.0,0.00019178,2]
[375226480,1753591840068,-460.0,0.00019178,2]
[375226481,1753591840078,-460.0,0.00019178,2]
[375226482,1753591840088,-460.0,0.00019178,2]
[375226484,1753591840097,-460.0,0.00019178,2]
[375226485,1753591840106,-256.64114248,0.00019178,2]
[375226486,1753591840116,-460.0,0.00019178,2]
[375226487,1753591840125,-460.0,0.00019178,2]
[375226488,1753591840135,-573.0680116,0.00019178,2]
[375226489,1753591840144,-460.0,0.00019178,2]
[375226491,1753591840153,-460.0,0.00019178,2]
[375226492,1753591840163,-460.0,0.00019178,2]
[375226493,1753591840172,-460.0,0.00019178,2]
[375226495,1753591840181,-460.0,0.00019178,2]
[375226497,1753591840191,-461.73710452,0.00019178,2]
[375226499,1753591840200,-622.07,0.00019178,2]
[375226501,1753591840209,-584.25188953,0.00019178,2]
[375226503,1753591840219,-460.0,0.00019178,2]
[375226505,1753591840228,-460.0,0.00019178,2]
[375226507,1753591840238,-460.0,0.00019178,2]
[375226509,1753591840247,-460.0,0.00019178,2]
[375226511,1753591840256,-460.0,0.00019178,2]
[375226513,1753591840266,-460.0,0.00019178,2]
[375226515,1753591840276,-460.0,0.00019178,2]
[375226517,1753591840285,-460.0,0.00019178,2]
[375226519,1753591840295,-460.0,0.00019178,2]
[375226521,1753591840304,-460.2633411,0.00019178,2]
[375226523,1753591840313,-580.83951409,0.00019178,2]
[375226525,1753591840322,-564.9,0.00019178,2]
[375226527,1753591840333,-460.0,0.00019178,2]
[375226529,1753591840343,-460.0,0.00019178,2]
[375226531,1753591840353,-460.0,0.00019178,2]
[375226533,1753591840362,-462.28802853,0.00019178,2]
[375226535,1753591840372,-460.0,0.00019178,2]
[375226537,1753591840381,-460.0,0.00019178,2]
[375226539,1753591840392,-622.74,0.00019178,2]
[375226541,1753591840408,-645.93,0.00019178,2]
[375226543,1753591840417,-460.0,0.00019178,2]
[375226545,1753591840427,-460.0,0.00019178,2]
[375226547,1753591840436,-460.0,0.00019178,2]
[375226549,1753591840446,-460.0,0.00019178,2]
[375226551,1753591840455,-460.0,0.00019178,2]
[375226553,1753591840464,-596.47081137,0.00019178,2]
[375226555,1753591840474,-460.0,0.00019178,2]
[375226557,1753591840483,-164.05156319,0.00019178,2]
[375226559,1753591840492,-460.0,0.00019178,2]
[375226561,1753591840501,-460.0,0.00019178,2]
[375226563,1753591840511,-460.0,0.00019178,2]
[375226565,1753591840521,-460.0,0.00019178,2]
[375226567,1753591840531,-460.0,0.00019178,2]
[375226569,1753591840542,-460.74247809,0.00019178,2]
[375226571,1753591840551,-460.0,0.00019178,2]
[375226573,1753591840560,-460.0,0.00019178,2]
[375226575,1753591840569,-460.0,0.00019178,2]
[375226577,1753591840581,-460.0,0.00019178,2]
[375226579,1753591840590,-2456.43,0.00019178,2]
[375226581,1753591840599,-460.0,0.00019178,2]
[375226583,1753591840609,-460.0,0.00019178,2]
[375226585,1753591840619,-460.0,0.00019178,2]
[375226587,1753591840628,-460.0,0.00019178,2]
[375226589,1753591840637,-460.0,0.00019178,2]
[375226591,1753591840647,-460.0,0.00019178,2]
[375226593,1753591840656,-460.0,0.00019178,2]
[375226595,1753591840665,-460.0,0.00019178,2]
[375226597,1753591840674,-413.5416707,0.00019178,2]
[375226599,1753591840683,-460.0,0.00019178,2]
[375226601,1753591840693,-460.0,0.00019178,2]
[375226604,1753591840702,-460.0,0.00019178,2]
[375226607,1753591840711,-462.22823833,0.00019178,2]
[375226610,1753591840722,-938.04,0.00019178,2]
[375226613,1753591840733,-331.73856812,0.00019178,2]
[375226616,1753591840742,-460.0,0.00019178,2]
[375226619,1753591840751,-460.0,0.00019178,2]
[375226621,1753591840760,-475.9132921,0.00019178,2]
[375226623,1753591840770,-460.0,0.00019178,2]
[375226625,1753591840779,-809.77,0.00019178,2]
[375226627,1753591840788,-460.0,0.00019178,2]
[375226629,1753591840797,-460.0,0.00019178,2]
[375226631,1753591840806,-460.0,0.00019178,2]
[375226633,1753591840815,-460.0,0.00019178,2]
[375226635,1753591840825,-460.0,0.00019178,2]
[375226637,1753591840836,-460.0,0.00019178,2]
[375226639,1753591840846,-460.0,0.00019178,2]
[375226641,1753591840855,-570.29241571,0.00019178,2]
[375226643,1753591840864,-525.99,0.00019178,2]
[375226645,1753591840874,-442.69037982,0.00019178,2]
[375226647,1753591840883,-460.0,0.00019178,2]
[375226649,1753591840891,-461.20924833,0.00019178,2]
[375226650,1753591840901,-460.0,0.00019178,2]
[375226653,1753591840914,-460.0,0.00019178,2]
[375226654,1753591840925,-488.79,0.00019178,2]
[375226656,1753591840935,-460.0,0.00019178,2]
[375226659,1753591840945,-460.0,0.00019178,2]
[375226661,1753591840954,-773.1,0.00019178,2]
[375226663,1753591840963,-180.36535785,0.00019178,2]
[375226664,1753591840972,-460.0,0.00019178,2]
[375226666,1753591840982,-460.0,0.00019178,2]
[375226668,1753591840991,-845.26,0.00019178,2]
[375226670,1753591841000,-460.0,0.00019178,2]
[375226672,1753591841009,-460.0,0.00019178,2]
[375226674,1753591841019,-500.0,0.00019178,2]
[375226676,1753591841028,-500.0,0.00019178,2]
[375226679,1753591841037,-500.0,0.00019178,2]
[375226680,1753591841046,-500.0,0.00019178,2]
[375226682,1753591841055,-460.0,0.00019178,2]
[375226685,1753591841065,-500.0,0.00019178,2]
[375226686,1753591841074,-500.0,0.00019178,2]
[375226689,1753591841085,-500.0,0.00019178,2]
[375226691,1753591841094,-460.0,0.00019178,2]
[375226692,1753591841103,-460.0,0.00019178,2]
[375226695,1753591841113,-460.0,0.00019178,2]
[375226696,1753591841124,-460.0,0.00019178,2]
[375226699,1753591841134,-460.0,0.00019178,2]
[375226701,1753591841143,-460.0,0.00019178,2]
[375226702,1753591841152,-460.0,0.00019178,2]
[375226704,1753591841162,-279.04369136,0.00019178,2]
[375226706,1753591841171,-460.0,0.00019178,2]
[375226708,1753591841180,-460.0,0.00019178,2]
[375226710,1753591841190,-460.0,0.00019178,2]
[375226712,1753591841199,-474.30754521,0.00019178,2]
[375226714,1753591841208,-460.0,0.00019178,2]
[375226716,1753591841217,-460.0,0.00019178,2]
[375226718,1753591841227,-798.34,0.00019178,2]
[375226720,1753591841236,-460.0,0.00019178,2]
[375226722,1753591841246,-460.0,0.00019178,2]
[375226724,1753591841255,-371.2662023,0.00019178,2]
[375226726,1753591841264,-460.0,0.00019178,2]
[375226728,1753591841274,-460.54964605,0.00019178,2]
[375226730,1753591841283,-460.0,0.00019178,2]
[375226732,1753591841293,-460.0,0.00019178,2]
[375226734,1753591841302,-584.78,0.00019178,2]
[375226736,1753591841312,-672.53,0.00019178,2]
[375226738,1753591841321,-460.0,0.00019178,2]
[375226740,1753591841332,-460.0,0.00019178,2]
[375226742,1753591841342,-487.67724759,0.00019178,2]
[375226744,1753591841351,-2999.76,0.00019178,2]
[375226746,1753591841360,-460.0,0.00019178,2]
[375226748,1753591841369,-393.94165669,0.00019178,2]
[375226750,1753591841378,-460.0,0.00019178,2]
[375226752,1753591841389,-327.21877159,0.00019178,2]
[375226754,1753591841398,-1147.37,0.00019178,2]
[375226756,1753591841408,-460.0,0.00019178,2]
[375226758,1753591841418,-460.0,0.00019178,2]
[375226760,1753591841428,-460.0,0.00019178,2]
[375226762,1753591841437,-460.0,0.00019178,2]
[375226765,1753591841449,-460.0,0.00019178,2]
[375226767,1753591841458,-460.0,0.00019178,2]
[375226768,1753591841467,-460.0,0.00019178,2]
[375226771,1753591841478,-460.0,0.00019178,2]
[375226772,1753591841487,-790.12,0.00019178,2]
[375226774,1753591841497,-460.0,0.00019178,2]
[375226777,1753591841509,-730.21,0.00019178,2]
[375226779,1753591841519,-460.0,0.00019178,2]
[375226781,1753591841530,-2109.78,0.00019178,2]
[375226782,1753591841540,-836.26,0.00019178,2]
[375226784,1753591841550,-461.81384529,0.00019178,2]
[375226786,1753591841559,-460.0,0.00019178,2]
[375226789,1753591841570,-560.59,0.00019178,2]
[375226791,1753591841583,-460.0,0.00019178,2]
[375226793,1753591841593,-460.0,0.00019178,2]
[375226795,1753591841602,-460.0,0.00019178,2]
[375226797,1753591841612,-581.12,0.00019178,2]
[375226798,1753591841623,-460.0,0.00019178,2]
[375226800,1753591841634,-460.0,0.00019178,2]
[375226802,1753591841644,-460.0,0.00019178,2]
[375226805,1753591841655,-460.0,0.00019178,2]
[375226806,1753591841670,-932.6,0.00019178,2]
[375226808,1753591841681,-460.0,0.00019178,2]
[375226810,1753591841691,-460.0,0.00019178,2]
[375226812,1753591841700,-2465.52,0.00019178,2]
[375226814,1753591841709,-460.0,0.00019178,2]
[375226816,1753591841718,-460.0,0.00019178,2]
[375226818,1753591841731,-594.88,0.00019178,2]
[375226820,1753591841741,-387.18570573,0.00019178,2]
[375226822,1753591841750,-788.56,0.00019178,2]
[375226824,1753591841759,-460.0,0.00019178,2]
[375226826,1753591841769,-171.48957217,0.00019178,2]
[375226828,1753591841778,-460.0,0.00019178,2]
[375226830,1753591841787,-460.0,0.00019178,2]
[375226832,1753591841796,-1130.94,0.00019178,2]
[375226834,1753591841805,-460.0,0.00019178,2]
[375226836,1753591841814,-456.39160033,0.00019178,2]
[375226838,1753591841824,-460.0,0.00019178,2]
[375226840,1753591841834,-460.53775341,0.00019178,2]
[375226842,1753591841844,-460.0,0.00019178,2]
[375226844,1753591841854,-460.0,0.00019178,2]
[375226846,1753591841863,-460.0,0.00019178,2]
[375226848,1753591841871,-460.0,0.00019178,2]
[375226850,1753591841880,-460.0,0.00019178,2]
[375226852,1753591841889,-659.51,0.00019178,2]
[375226854,1753591841899,-460.0,0.00019178,2]
[375226855,1753591841909,-460.0,0.00019178,2]
[375226857,1753591841921,-460.0,0.00019178,2]
[375226859,1753591841930,-460.0,0.00019178,2]
[375226861,1753591841939,-460.0,0.00019178,2]
[375226863,1753591841948,-460.0,0.00019178,2]
[375226865,1753591841958,-460.0,0.00019178,2]
[375226867,1753591841968,-460.0,0.00019178,2]
[375226869,1753591841977,-460.0,0.00019178,2]
[375226871,1753591841986,-460.0,0.00019178,2]
[375226873,1753591841996,-467.61987647,0.00019178,2]
[375226875,1753591842005,-460.0,0.00019178,2]
[375226877,1753591842014,-460.0,0.00019178,2]
[375226879,1753591842024,-460.0,0.00019178,2]
[375226881,1753591842034,-1707.22,0.00019178,2]
[375226883,1753591842043,-460.0,0.00019178,2]
[375226885,1753591842053,-460.0,0.00019178,2]
[375226887,1753591842063,-460.0,0.00019178,2]
[375226889,1753591842072,-460.0,0.00019178,2]
[375226891,1753591842083,-460.0,0.00019178,2]
[375226893,1753591842092,-298.93524801,0.00019178,2]
[375226895,1753591842101,-460.0,0.00019178,2]
[375226897,1753591842111,-460.0,0.00019178,2]
[375226899,1753591842121,-473.20477402,0.00019178,2]
[375226901,1753591842130,-460.0,0.00019178,2]
[375226903,1753591842139,-460.0,0.00019178,2]
[375226905,1753591842148,-469.04839121,0.00019178,2]
[375226907,1753591842157,-460.0,0.00019178,2]
[375226909,1753591842166,-460.0,0.00019178,2]
[375226911,1753591842175,-548.44,0.00019178,2]
[375226913,1753591842184,-460.0,0.00019178,2]
[375226915,1753591842193,-844.26,0.00019178,2]
[375226917,1753591842203,-460.0,0.00019178,2]
[375226919,1753591842212,-460.0,0.00019178,2]
[375226921,1753591842221,-460.0,0.00019178,2]
[375226923,1753591842230,-237.80179599,0.00019178,2]
[375226925,1753591842239,-460.0,0.00019178,2]
[375226927,1753591842249,-460.0,0.00019178,2]
[375226929,1753591842259,-460.0,0.00019178,2]
[375226931,1753591842268,-500.0,0.00019178,2]
[375226933,1753591842277,-500.0,0.00019178,2]
[375226935,1753591842286,-500.0,0.00019178,2]
[375226936,1753591842295,-500.0,0.00019178,2]
[375226937,1753591842305,-500.0,0.00019178,2]
[375226938,1753591842314,-460.0,0.00019178,2]
[375226939,1753591842323,-500.0,0.00019178,2]
[375226940,1753591842334,-500.0,0.00019178,2]
[375226941,1753591842343,-500.0,0.00019178,2]
[375226942,1753591842353,-554.50478357,0.00019178,2]
[375226943,1753591842362,-460.0,0.00019178,2]